fUSD/lending_fUSD_20240403
["ID","MTS","AMOUNT","RATE_DAILY","PERIOD"]
[321423394,1712182268852,-229.120981,0.00049315,30]
[321423395,1712182268861,-151.0,0.00049315,120]
[321423396,1712182268871,-229.120981,0.00049315,30]
[321423397,1712182268881,-151.0,0.00049315,120]
[321423398,1712182268892,-229.120981,0.00049315,30]
[321423399,1712182268902,-151.0,0.00049315,120]
[321423400,1712182268911,-229.120981,0.00049315,30]
[321423401,1712182268990,-151.0,0.00049315,120]
[321423402,1712182268999,-229.120981,0.00049315,30]
[321423403,1712182269008,-151.0,0.00049315,120]
[321423404,1712182269017,-229.120981,0.00049315,30]
[321423405,1712182269027,-229.120981,0.00049315,30]
[321423406,1712182269036,-151.0,0.00049315,120]
[321423407,1712182269045,-229.120981,0.00049315,30]
[321423408,1712182269055,-152.467629,0.00049315,120]
[321423409,1712182269064,-229.120981,0.00049315,30]
[321423410,1712182269074,-229.120981,0.00049315,30]
[321423411,1712182269083,-229.120981,0.00049315,30]
[321423412,1712182269092,-229.120981,0.00049315,30]
[321423413,1712182269102,-152.264759,0.00049315,120]
[321423414,1712182269111,-229.120981,0.00049315,30]
[321423415,1712182269120,-229.120981,0.00049315,30]
[321423416,1712182269130,-229.120981,0.00049315,30]
[321423417,1712182269139,-229.120981,0.00049315,30]
[321423418,1712182269151,-151.0,0.00049315,120]
[321423419,1712182269160,-229.120977,0.00049315,30]
[321423420,1712182269169,-151.0,0.00049315,120]
[321423421,1712182269179,-151.0,0.00049315,120]
[321423422,1712182269189,-190.506701,0.00049315,120]
[321423423,1712182269200,-151.0,0.00049315,120]
[321423424,1712182269209,-151.0,0.00049315,120]
[321423425,1712182269220,-151.0,0.00049315,120]
[321423426,1712182269229,-151.0,0.00049315,120]
[321423427,1712182269239,-157.731152,0.00049315,120]
[321423428,1712182269249,-170.398702,0.00049315,120]
[321423429,1712182269260,-150.0,0.00049315,2]
[321423430,1712182269269,-382.32109416,0.00049356,90]
[321423431,1712182269280,-1074.01700169,0.00049356,90]
[321423432,1712182269290,-151.0,0.0004937,120]
[321423433,1712182269300,-197.38677701,0.00049377,30]
[321423434,1712182269310,-152.0,0.00049386,18]
[321423435,1712182269319,-509.54232732,0.00049443,30]
[321423436,1712182269328,-1029.0,0.00049452,30]
[321423437,1712182269337,-211.70038815,0.00049453,30]
[321423438,1712182269347,-197.38677701,0.00049479,30]
[321423439,1712182269356,-151.29625457,0.00049482,30]
[321423440,1712182269365,-3170.77637,0.00049488,30]
[321423441,1712182269375,-228666.80371101,0.0004949,15]
[321423442,1712182269384,-308.56,0.0004949,2]
[321423443,1712182269393,-78656.10212082,0.00049498,2]
[321423444,1712182269405,-150.0,0.000495,10]
[321423445,1712182269414,-150.0,0.00049539,120]
[321423446,1712182269423,-236.23610031,0.00049558,7]
[321423447,1712182269432,-236.23610031,0.00049558,7]
[321423448,1712182269442,-236.23610031,0.00049558,7]
[321423449,1712182269451,-236.23610031,0.00049558,7]
[321423450,1712182269461,-236.23610031,0.00049558,7]
[321423451,1712182269471,-236.23610031,0.00049558,7]
[321423452,1712182269481,-236.23610031,0.00049558,7]
[321423453,1712182269491,-236.23610031,0.00049558,7]
[321423454,1712182269501,-236.23610031,0.00049558,7]
[321423455,1712182269510,-236.23610031,0.00049558,7]
[321423456,1712182269520,-236.23610031,0.00049558,7]
[321423457,1712182269529,-236.23610031,0.00049558,7]
[321423458,1712182269539,-236.23610031,0.00049558,7]
[321423459,1712182269548,-236.23610031,0.00049558,7]
[321423460,1712182269557,-236.23610031,0.00049558,7]
[321423461,1712182269566,-236.23610031,0.00049558,7]
[321423462,1712182269574,-236.23610031,0.00049558,7]
[321423463,1712182269583,-236.23610031,0.00049558,7]
[321423464,1712182269592,-236.23610031,0.00049558,7]
[321423465,1712182269603,-236.23610031,0.00049558,7]
[321423466,1712182269612,-236.23610031,0.00049558,7]
[321423467,1712182269622,-236.23610031,0.00049558,7]
[321423468,1712182269630,-236.23610031,0.00049558,7]
[321423469,1712182269641,-236.23610031,0.00049558,7]
[321423470,1712182269651,-236.23610031,0.00049558,7]
[321423471,1712182269660,-236.23610031,0.00049558,7]
[321423472,1712182269669,-236.23610031,0.00049558,7]
[321423473,1712182269679,-236.23610031,0.00049558,7]
[321423474,1712182269688,-236.23610031,0.00049558,7]
[321423475,1712182269698,-236.23610031,0.00049558,7]
[321423476,1712182269707,-236.23610031,0.00049558,7]
[321423477,1712182269716,-236.23610031,0.00049558,7]
[321423478,1712182269724,-236.23610031,0.00049558,7]
[321423479,1712182269734,-236.23610031,0.00049558,7]
[321423480,1712182269743,-5024.82841,0.00049561,30]
[321423481,1712182269753,-155.66052387,0.0004959,120]
[321423482,1712182269762,-155.66052387,0.0004959,120]
[321423483,1712182269772,-155.66052387,0.0004959,120]
[321423484,1712182269782,-155.66052387,0.0004959,120]
[321423485,1712182269791,-155.66052387,0.0004959,120]
[321423486,1712182269801,-155.66052387,0.0004959,120]
[321423487,1712182269811,-155.66052387,0.0004959,120]
[321423488,1712182269821,-155.66052387,0.0004959,120]
[321423489,1712182269833,-155.66052387,0.0004959,120]
[321423490,1712182269843,-155.66052387,0.0004959,120]
[321423491,1712182269854,-155.66052387,0.0004959,120]
[321423492,1712182269864,-155.66052387,0.0004959,120]
[321423493,1712182269874,-155.66052387,0.0004959,120]
[321423494,1712182269883,-155.66052387,0.0004959,120]
[321423495,1712182269894,-155.66052387,0.0004959,120]
[321423496,1712182269905,-155.66052387,0.0004959,120]
[321423497,1712182269915,-156.16,0.0004959,120]
[321423498,1712182269925,-529.32078117,0.0004959,120]
[321423499,1712182269935,-529.32078117,0.0004959,120]
[321423500,1712182269947,-529.32078117,0.0004959,120]
[321423501,1712182269957,-529.32078117,0.0004959,120]
[321423502,1712182269967,-529.32078117,0.0004959,120]
[321423503,1712182269980,-529.32078117,0.0004959,120]
[321423504,1712182269990,-529.32078117,0.0004959,120]
[321423505,1712182270002,-529.32078117,0.0004959,120]
[321423506,1712182270012,-529.32078117,0.0004959,120]
[321423507,1712182270022,-529.32078117,0.0004959,120]
[321423508,1712182270031,-509.54232732,0.00049597,30]
[321423509,1712182270041,-153.63115965,0.00049649,30]
[321423510,1712182270053,-602.12417404,0.00049655,30]
[321423511,1712182270063,-3170.77637,0.00049688,30]
[321423512,1712182270073,-172.76,0.000497,6]
[321423513,1712182270083,-172.76,0.000497,6]
[321423514,1712182270095,-172.76,0.000497,6]
[321423515,1712182270105,-172.76,0.000497,6]
[321423516,1712182270114,-172.76,0.000497,6]
[321423517,1712182270124,-172.76,0.000497,6]
[321423518,1712182270134,-172.76,0.000497,6]
[321423519,1712182270144,-172.76,0.000497,6]
[321423520,1712182270156,-172.76,0.000497,6]
[321423521,1712182270165,-172.76,0.000497,6]
[321423522,1712182270176,-172.76,0.000497,6]
[321423523,1712182270186,-172.76,0.000497,6]
[321423524,1712182270195,-7804.15,0.000497,6]
[321423525,1712182270205,-7804.15,0.000497,6]
[321423526,1712182270215,-7804.15,0.000497,6]
[321423527,1712182270225,-7804.15,0.000497,6]
[321423528,1712182270235,-7804.15,0.000497,6]
[321423529,1712182270244,-7804.15,0.000497,6]
[321423530,1712182270254,-7804.15,0.000497,6]
[321423531,1712182270264,-7804.15,0.000497,6]
[321423532,1712182270273,-7804.15,0.000497,6]
[321423533,1712182270283,-7804.15,0.000497,6]
[321423534,1712182270293,-7804.15,0.000497,6]
[321423535,1712182270302,-7804.15,0.000497,6]
[321423536,1712182270312,-7804.15,0.000497,6]
[321423537,1712182270322,-7804.15,0.000497,6]
[321423538,1712182270331,-7804.15,0.000497,6]
[321423539,1712182270341,-7804.15,0.000497,6]
[321423540,1712182270352,-7804.15,0.000497,6]
[321423541,1712182270363,-7804.15,0.000497,6]
[321423542,1712182270373,-7804.15,0.000497,6]
[321423543,1712182270384,-7804.15,0.000497,6]
[321423544,1712182270395,-157.33985921,0.00049709,30]
[321423545,1712182270406,-602.12417404,0.00049766,30]
[321423546,1712182270415,-529.32078117,0.00049793,120]
[321423547,1712182270426,-243.94897136,0.000498,60]
[321423548,1712182270436,-5000.00369445,0.000498,30]
[321423549,1712182270445,-153.63115965,0.00049839,30]
[321423550,1712182270455,-219.0,0.0004985,30]
[321423551,1712182270464,-207.0,0.0004985,30]
[321423552,1712182270474,-211.0,0.0004985,30]
[321423553,1712182270484,-602.12417404,0.00049878,30]
[321423554,1712182270496,-875.7886,0.00049888,7]
[321423555,1712182270505,-157.33985921,0.00049893,30]
[321423556,1712182270516,-500.0,0.000499,10]
[321423557,1712182270526,-495394.766363,0.000499,30]
[321423558,1712182270537,-155.503559,0.000499,120]
[321423559,1712182270547,-155.78714103,0.00049952,30]
[321423560,1712182270556,-596.5,0.00049955,2]
[321423561,1712182270566,-602.12417404,0.00049965,30]
[321423562,1712182270576,-485.96508342,0.00049995,120]
[321423563,1712182270588,-549.53878118,0.00049998,120]
[321423564,1712182270602,-200000.0,0.0005,50]
[321423565,1712182270612,-155.01554647,0.0005,2]
[321423566,1712182270622,-27093.29378832,0.0005,4]
[321423567,1712182270632,-151.53200999,0.0005,2]
[321423568,1712182270642,-1000.0,0.0005,2]
[321423569,1712182270653,-2106.0,0.0005,10]
[321423570,1712182270663,-220000.0,0.0005,7]
[321423571,1712182270673,-1592.37,0.0005,16]
[321423572,1712182270683,-528.16,0.0005,7]
[321423573,1712182270693,-500.0,0.0005,7]
[321423574,1712182270703,-500.0,0.0005,7]
[321423575,1712182270713,-500.0,0.0005,7]
[321423576,1712182270723,-500.0,0.0005,7]
[321423577,1712182270733,-500.0,0.0005,7]
[321423578,1712182270743,-500.0,0.0005,2]
[321423579,1712182270752,-150.0,0.0005,27]
[321423580,1712182270762,-500.0,0.0005,2]
[321423581,1712182270771,-10000.0,0.0005,3]
[321423582,1712182270781,-997.64327984,0.0005,2]
[321423583,1712182270791,-333.6136775,0.0005,90]
[321423584,1712182270801,-4102.32389012,0.0005,30]
[321423585,1712182270811,-418.73316858,0.0005,30]
[321423586,1712182270821,-258.48002702,0.0005,30]
[321423587,1712182270830,-500.0,0.0005,30]
[321423588,1712182270839,-300.0,0.0005,30]
[321423589,1712182270850,-300.0,0.0005,30]
[321423590,1712182270861,-2606.34,0.0005,30]
[321423591,1712182270871,-232.27042375,0.0005,30]
[321423592,1712182270882,-429.26129912,0.0005,28]
[321423593,1712182270892,-32017.84532244,0.0005,30]
[321423594,1712182270902,-817.20876623,0.0005,2]
[321423595,1712182270912,-200.0,0.0005,2]
[321423596,1712182270922,-1371.44142628,0.0005,7]
[321423597,1712182270931,-1007.30709723,0.0005,5]
[321423598,1712182270940,-468.5481065,0.0005,90]
[321423599,1712182270950,-2100.0,0.0005,21]
[321423600,1712182270959,-2000.0,0.0005,30]
[321423601,1712182270968,-153.3,0.0005,30]
[321423602,1712182270978,-1120897.62075817,0.0005,20]
[321423603,1712182270987,-573.58258175,0.0005,15]
[321423604,1712182270996,-1506.35434466,0.0005,2]
[321423605,1712182271006,-1120.95388549,0.0005,2]
[321423606,1712182271015,-3885.94492622,0.0005,2]
[321423607,1712182271025,-2622.64739998,0.0005,30]
[321423608,1712182271034,-54000.0,0.0005,60]
[321423609,1712182271044,-22649.9167567,0.0005,30]
[321423610,1712182271053,-14312.30295353,0.0005,120]
[321423611,1712182271063,-182.86803483,0.0005,120]
[321423612,1712182271073,-156.10785485,0.0005,120]
[321423613,1712182271083,-200.0,0.0005,120]
[321423614,1712182271094,-151.0,0.0005,120]
[321423615,1712182271103,-269.07,0.0005,120]
[321423616,1712182271113,-500.0,0.0005,120]
[321423617,1712182271122,-293.86642957,0.0005,120]
[321423618,1712182271132,-1600.0,0.0005,21]
[321423619,1712182271141,-2000.0,0.0005,120]
[321423620,1712182271150,-7000.0,0.0005,30]
[321423621,1712182271160,-5405.0,0.0005,8]
[321423622,1712182271170,-839.03450068,0.0005,2]
[321423623,1712182271179,-50466.74497159,0.0005,120]
[321423624,1712182271189,-127607.48221531,0.0005,2]
[321423625,1712182271198,-200.0,0.0005,27]
[321423626,1712182271208,-150.0,0.0005,10]
[321423627,1712182271218,-1014.44,0.00050005,2]
[321423628,1712182271227,-388.42808272,0.00050033,60]
[321423629,1712182271237,-151.0,0.00050055,120]
[321423630,1712182271246,-509.54232732,0.00050063,60]
[321423631,1712182271255,-3170.77637,0.00050088,30]
[321423632,1712182271265,-1052.25,0.00050104,2]
[321423633,1712182271275,-155.2251499,0.00050125,60]
[321423634,1712182271285,-2123.79,0.00050136,64]
[321423635,1712182271294,-203.19613583,0.00050168,60]
[321423636,1712182271303,-152.0,0.00050181,19]
[321423637,1712182271313,-150.0,0.00050222,120]
[321423638,1712182271322,-211.70038815,0.0005023,60]
[321423639,1712182271332,-3170.77637,0.00050288,30]
[321423640,1712182271341,-153.63115965,0.00050303,60]
[321423641,1712182271351,-1014.44,0.0005032,2]
[321423642,1712182271360,-529.32078117,0.0005034,120]
[321423643,1712182271370,-99999.99999902,0.000504,15]
[321423644,1712182271380,-203.19613583,0.00050448,60]
[321423645,1712182271389,-3170.77637,0.00050488,30]
[321423646,1712182271399,-2000.0,0.000505,30]
[321423647,1712182271409,-500.0,0.00050562,4]
[321423648,1712182271418,-500.0,0.00050562,4]
[321423649,1712182271428,-500.0,0.00050562,4]
[321423650,1712182271437,-500.0,0.00050562,4]
[321423651,1712182271446,-500.0,0.00050562,4]
[321423652,1712182271456,-500.0,0.00050562,4]
[321423653,1712182271466,-500.0,0.00050562,4]
[321423654,1712182271475,-500.0,0.00050562,4]
[321423655,1712182271485,-500.0,0.00050562,4]
[321423656,1712182271494,-500.0,0.00050562,4]
[321423657,1712182271504,-500.0,0.00050562,4]
[321423658,1712182271514,-500.0,0.00050562,4]
[321423659,1712182271524,-500.0,0.00050562,4]
[321423660,1712182271534,-500.0,0.00050562,4]
[321423661,1712182271543,-500.0,0.00050562,4]
[321423662,1712182271553,-500.0,0.00050562,4]
[321423663,1712182271563,-500.0,0.00050562,4]
[321423664,1712182271572,-500.0,0.00050562,4]
[321423665,1712182271583,-500.0,0.00050562,4]
[321423666,1712182271595,-197.38677701,0.00050563,60]
[321423667,1712182271606,-510.96,0.000506,30]
[321423668,1712182271615,-291.67523411,0.00050618,60]
[321423669,1712182271625,-388.42808272,0.00050626,60]
[321423670,1712182271635,-509.54232732,0.00050655,60]
[321423671,1712182271646,-3170.77637,0.00050688,30]
[321423672,1712182271657,-151.0,0.0005074,120]
[321423673,1712182271668,-5823.05383184,0.0005074,2]
[321423674,1712182271680,-153.54975412,0.00050743,60]
[321423675,1712182271691,-2000.0,0.00050745,5]
[321423676,1712182271701,-2000.0,0.00050745,5]
[321423677,1712182271711,-2000.0,0.00050745,5]
[321423678,1712182271721,-2000.0,0.00050745,5]
[321423679,1712182271731,-2000.0,0.00050745,5]
[321423680,1712182271741,-2000.0,0.00050745,5]
[321423681,1712182271751,-388.42808272,0.00050769,60]
[321423682,1712182271762,-155.2251499,0.00050772,60]
[321423683,1712182271771,-500.0,0.000508,30]
[321423684,1712182271782,-500.0,0.000508,30]
[321423685,1712182271793,-500.0,0.000508,30]
[321423686,1712182271804,-500.0,0.000508,30]
[321423687,1712182271815,-500.0,0.000508,30]
[321423688,1712182271826,-500.0,0.000508,30]
[321423689,1712182271836,-500.0,0.000508,30]
[321423690,1712182271845,-500.0,0.000508,30]
[321423691,1712182271855,-500.0,0.000508,30]
[321423692,1712182271865,-500.0,0.000508,30]
[321423693,1712182271875,-500.0,0.000508,30]
[321423694,1712182271886,-500.0,0.000508,30]
[321423695,1712182271898,-500.0,0.000508,30]
[321423696,1712182271910,-500.0,0.000508,30]
[321423697,1712182271920,-500.0,0.000508,30]
[321423698,1712182271931,-500.0,0.000508,30]
[321423699,1712182271943,-500.0,0.000508,30]
[321423700,1712182271953,-500.0,0.000508,30]
[321423701,1712182271963,-500.0,0.000508,30]
[321423702,1712182271972,-500.0,0.000508,30]
[321423703,1712182271982,-615.26,0.000508,30]
[321423704,1712182271991,-602.12417404,0.00050813,60]
[321423705,1712182272001,-509.54232732,0.00050864,60]
[321423706,1712182272010,-529.32078117,0.00050888,120]
[321423707,1712182272020,-2822.39628284,0.00050899,50]
[321423708,1712182272030,-7816.209044,0.000509,30]
[321423709,1712182272039,-480.0,0.000509,39]
[321423710,1712182272212,-150.0,0.00050911,120]
[321423711,1712182272222,-2123.79,0.00050958,68]
[321423712,1712182272231,-157.1757639,0.00050959,120]
[321423713,1712182272241,-183.33333334,0.00050959,120]
[321423714,1712182272250,-400.0,0.0005097,7]
[321423715,1712182272260,-152.0,0.00050976,20]
[321423716,1712182272269,-211.70038815,0.00050985,60]
[321423717,1712182272278,-200000.0,0.00051,51]
[321423718,1712182272288,-5350.0,0.00051,29]
[321423719,1712182272298,-2014.0,0.00051,30]
[321423720,1712182272307,-33351.25689782,0.00051,2]
[321423721,1712182272316,-10000.0,0.00051,2]
[321423722,1712182272326,-15000.0,0.00051,7]
[321423723,1712182272335,-10039.0,0.00051,3]
[321423724,1712182272344,-150.0,0.00051,29]
[321423725,1712182272354,-1000.0,0.00051,10]
[321423726,1712182272363,-10000.0,0.00051,10]
[321423727,1712182272372,-10000.0,0.00051,13]
[321423728,1712182272382,-10000.0,0.00051,15]
[321423729,1712182272391,-10000.0,0.00051,20]
[321423730,1712182272403,-10220.0,0.00051,16]
[321423731,1712182272413,-1000.0,0.00051,8]
[321423732,1712182272422,-219.0,0.00051,30]
[321423733,1712182272431,-207.0,0.00051,30]
[321423734,1712182272441,-46872.14717675,0.00051,2]
[321423735,1712182272450,-211.0,0.00051,30]
[321423736,1712182272459,-12504.999999,0.00051,7]
[321423737,1712182272468,-509.54232732,0.00051006,60]
[321423738,1712182272478,-203.19613583,0.0005103,60]
[321423739,1712182272488,-308.56,0.00051055,2]
[321423740,1712182272499,-211.70038815,0.00051087,60]
[321423741,1712182272510,-22519.35548413,0.000511,7]
[321423742,1712182272519,-157.1757639,0.00051178,120]
[321423743,1712182272529,-197.38677701,0.00051206,60]
[321423744,1712182272539,-197.38677701,0.00051265,60]
[321423745,1712182272549,-197.38677701,0.00051308,60]
[321423746,1712182272558,-153.63115965,0.00051311,60]
[321423747,1712182272568,-24692.54822936,0.00051334,120]
[321423748,1712182272577,-155.2251499,0.00051379,60]
[321423749,1712182272588,-211.70038815,0.00051408,60]
[321423750,1712182272601,-291.67523411,0.0005141,60]
[321423751,1712182272610,-1014.44,0.0005142,2]
[321423752,1712182272620,-159.96854777,0.00051422,60]
[321423753,1712182272630,-157.1757639,0.00051425,120]
[321423754,1712182272641,-151.0,0.00051425,120]
[321423755,1712182272651,-529.32078117,0.00051435,120]
[321423756,1712182272661,-201.84895916,0.000515,60]
[321423757,1712182272671,-483.77629855,0.000515,2]
[321423758,1712182272681,-1000.0,0.00051506,120]
[321423759,1712182272691,-291.67523411,0.00051599,60]
[321423760,1712182272701,-211.70038815,0.00051607,60]
[321423761,1712182272711,-157.1757639,0.00051644,120]
[321423762,1712182272721,-800.0,0.00051666,31]
[321423763,1712182272730,-203.19613583,0.00051673,60]
[321423764,1712182272740,-12000.0,0.00051708,8]
[321423765,1712182272749,-183.33333334,0.00051726,120]
[321423766,1712182272759,-1117.8,0.00051726,120]
[321423767,1712182272769,-1014.44,0.00051735,2]
[321423768,1712182272779,-152.0,0.00051771,21]
[321423769,1712182272789,-197.38677701,0.00051772,60]
[321423770,1712182272798,-2123.79,0.0005178,72]
[321423771,1712182272808,-2930.4,0.00051788,117]
[321423772,1712182272817,-150.0,0.00051839,120]
[321423773,1712182272827,-388.42808272,0.00051858,60]
[321423774,1712182272836,-159.96854777,0.0005188,60]
[321423775,1712182272847,-157.1757639,0.0005189,120]
[321423776,1712182272856,-159.96854777,0.00051894,60]
[321423777,1712182272866,-2870.07274757,0.000519,20]
[321423778,1712182272875,-2934.67058722,0.00051901,20]
[321423779,1712182272884,-2869.62928733,0.00051902,20]
[321423780,1712182272894,-2936.47439633,0.00051902,20]
[321423781,1712182272903,-2881.96988931,0.00051904,20]
[321423782,1712182272912,-2574.97625222,0.00051905,20]
[321423783,1712182272922,-6858.49235582,0.00051908,20]
[321423784,1712182272931,-2874.72916374,0.00051908,20]
[321423785,1712182272940,-2878.46197954,0.00051908,20]
[321423786,1712182272949,-2952.59202763,0.00051909,20]
[321423787,1712182272958,-2872.39853814,0.00051909,20]
[321423788,1712182272968,-2937.43268069,0.00051909,20]
[321423789,1712182272977,-9612.57853618,0.00051909,20]
[321423790,1712182272986,-2894.62976407,0.00051913,20]
[321423791,1712182272996,-153.63115974,0.00051913,60]
[321423792,1712182273005,-2921.56338829,0.00051916,20]
[321423793,1712182273014,-2936.62062973,0.00051917,20]
[321423794,1712182273023,-2893.25414337,0.00051917,20]
[321423795,1712182273032,-2867.66017462,0.00051918,20]
[321423796,1712182273041,-9644.00038433,0.00051918,20]
[321423797,1712182273050,-2630.94088502,0.00051919,20]
[321423798,1712182273059,-2906.58438806,0.00051919,20]
[321423799,1712182273068,-2931.91852631,0.0005192,20]
[321423800,1712182273079,-9662.55462385,0.0005192,20]
[321423801,1712182273088,-9620.27618125,0.0005192,20]
[321423802,1712182273097,-150.0,0.0005192,69]
[321423803,1712182273106,-486.43944172,0.00051921,20]
[321423804,1712182273115,-2876.83244405,0.00051922,20]
[321423805,1712182273124,-1812.30423854,0.00051923,20]
[321423806,1712182273133,-2878.09880721,0.00051924,20]
[321423807,1712182273142,-2871.11565947,0.00051924,20]
[321423808,1712182273151,-2846.04139791,0.00051928,20]
[321423809,1712182273160,-2932.64130685,0.00051929,20]
[321423810,1712182273170,-2874.69319112,0.00051931,20]
[321423811,1712182273178,-2875.05462374,0.00051931,20]
[321423812,1712182273187,-9621.30696943,0.00051932,20]
[321423813,1712182273197,-2832.48409767,0.00051934,20]
[321423814,1712182273206,-2873.24371708,0.00051934,20]
[321423815,1712182273215,-2866.48780074,0.00051935,20]
[321423816,1712182273225,-2934.62286411,0.00051937,20]
[321423817,1712182273234,-2937.97157516,0.00051938,20]
[321423818,1712182273243,-2588.16302158,0.00051939,20]
[321423819,1712182273253,-221.96392134,0.0005194,120]
[321423820,1712182273262,-1886.58832193,0.00051941,20]
[321423821,1712182273271,-2830.92584458,0.00051941,20]
[321423822,1712182273281,-9607.98799784,0.00051941,20]
[321423823,1712182273291,-2612.13474305,0.00051942,20]
[321423824,1712182273300,-2931.57744646,0.00051943,20]
[321423825,1712182273309,-2881.73773072,0.00051943,20]
[321423826,1712182273319,-2666.93936494,0.00051948,20]
[321423827,1712182273328,-2873.67568936,0.0005195,20]
[321423828,1712182273337,-2896.81077897,0.00051952,20]
[321423829,1712182273346,-2884.70148878,0.00051952,20]
[321423830,1712182273356,-613.49823121,0.00051953,20]
[321423831,1712182273365,-486.36094052,0.00051953,20]
[321423832,1712182273375,-2917.29556487,0.00051954,20]
[321423833,1712182273385,-2699.31622892,0.00051955,20]
[321423834,1712182273394,-488.38915633,0.00051955,20]
[321423835,1712182273404,-2931.54392034,0.00051955,20]
[321423836,1712182273413,-2075.7146954,0.00051956,20]
[321423837,1712182273423,-9660.17849143,0.00051956,20]
[321423838,1712182273433,-2981.94608892,0.00051957,20]
[321423839,1712182273442,-9693.6101124,0.00051958,20]
[321423840,1712182273452,-2870.03504822,0.0005196,20]
[321423841,1712182273462,-291.67523411,0.0005196,60]
[321423842,1712182273472,-2867.78924656,0.00051961,20]
[321423843,1712182273482,-2937.24987055,0.00051961,20]
[321423844,1712182273492,-2571.81709164,0.00051962,20]
[321423845,1712182273501,-2933.93612949,0.00051962,20]
[321423846,1712182273511,-2868.23151485,0.00051964,20]
[321423847,1712182273520,-2938.7777184,0.00051965,20]
[321423848,1712182273530,-2933.44096113,0.00051966,20]
[321423849,1712182273539,-2869.87055195,0.00051968,20]
[321423850,1712182273549,-2934.14785587,0.00051968,20]
[321423851,1712182273558,-453.2963195,0.00051972,20]
[321423852,1712182273568,-2837.71885876,0.00051972,20]
[321423853,1712182273577,-2822.25568655,0.00051972,20]
[321423854,1712182273588,-2933.36562794,0.00051974,20]
[321423855,1712182273599,-2867.24771259,0.00051977,20]
[321423856,1712182273608,-2875.02798317,0.0005198,20]
[321423857,1712182273618,-2939.59746914,0.0005198,20]
[321423858,1712182273628,-2932.51549961,0.0005198,20]
[321423859,1712182273638,-2236.17455223,0.00051981,20]
[321423860,1712182273647,-2841.52058383,0.00051981,20]
[321423861,1712182273658,-9651.93603998,0.00051981,20]
[321423862,1712182273668,-529.32078117,0.00051982,120]
[321423863,1712182273678,-2580.60068501,0.00051982,20]
[321423864,1712182273687,-2887.99920341,0.00051982,20]
[321423865,1712182273696,-483.24711317,0.00051984,20]
[321423866,1712182273705,-2602.93725345,0.00051984,20]
[321423867,1712182273715,-2866.58713184,0.00051984,20]
[321423868,1712182273724,-2937.66947353,0.00051985,20]
[321423869,1712182273735,-2728.43895619,0.00051986,20]
[321423870,1712182273744,-2934.4167051,0.00051986,20]
[321423871,1712182273754,-2574.88011812,0.00051987,20]
[321423872,1712182273763,-2584.23125908,0.00051987,20]
[321423873,1712182273772,-2932.58951852,0.00051987,20]
[321423874,1712182273781,-2861.69505377,0.00051988,20]
[321423875,1712182273791,-2166.98013762,0.0005199,20]
[321423876,1712182273800,-2821.83698745,0.0005199,20]
[321423877,1712182273809,-9637.61198991,0.00051993,20]
[321423878,1712182273818,-2868.14718432,0.00051994,20]
[321423879,1712182273827,-2879.09354574,0.00051995,20]
[321423880,1712182273837,-2933.44077793,0.00051996,20]
[321423881,1712182273846,-98051.63554872,0.00051999,2]
[321423882,1712182273856,-200000.0,0.00052,52]
[321423883,1712182273867,-150.0,0.00052,2]
[321423884,1712182273878,-150.0,0.00052,2]
[321423885,1712182273888,-8618.0,0.00052,14]
[321423886,1712182273900,-150.0,0.00052,30]
[321423887,1712182273910,-150.0,0.00052,30]
[321423888,1712182273919,-6103.59187223,0.00052,30]
[321423889,1712182273930,-8536.24737456,0.00052,14]
[321423890,1712182273941,-5860.81478722,0.00052,14]
[321423891,1712182273951,-60180.69127959,0.00052,2]
[321423892,1712182273963,-5007.62509518,0.00052,2]
[321423893,1712182273973,-2100.0,0.00052,28]